[Event "Romanian Superliga 2024"]
[Site "Mamaia"]
[Date "2024.10.01"]
[Round "4.23"]
[White "Stepanencu, Nicodim-Cosmin"]
[Black "Vajda, Albert"]
[Result "1/2-1/2"]
[ECO "E44"]
[WhiteElo "2296"]
[BlackElo "2279"]
[Annotator "RC"]
[PlyCount "80"]
[EventDate "2024.09.26"]
[EventType "team-tourn"]
[EventCountry "ROU"]
[SourceTitle "playchess.com"]
[Source "ChessBase"]
[SourceQuality "1"]
[TimeControl "40/5400+30:1800+30"]

1. d4 {[%emt 0:00:27]} Nf6 {[%emt 0:00:16]} 2. c4 {[%emt 0:00:19]} e6 {[%emt 0:00:20]} 3. Nc3 {[%emt 0:00:07]} Bb4 {[%emt 0:00:12]} 4. e3 {[%emt 0:00:06]} b6 {[%emt 0:00:17]} 5. Nge2 {[%emt 0:02:37]} Ne4 {[%emt 0:00:47]} 6. Bd2 {[%emt 0:07:19]} Nxd2 {[%emt 0:02:03]} 7. Qxd2 {[%emt 0:00:06]} O-O {[%emt 0:02:34]} 8. a3 {[%emt 0:00:47]} Bxc3 {[%emt 0:01:05]} 9. Nxc3 {[%emt 0:00:12]} d6 {[%emt 0:00:28]} 10. Bd3 {[%emt 0:01:55]} Bb7 {[%emt 0:03:06]} 11. Qc2 {[%emt 0:08:53]} Qh4 {[%emt 0:01:21]} 12. g3 {[%emt 0:00:49]} Qh6 {[%emt 0:05:39]} 13. Be4 {[%emt 0:01:01]} Bxe4 {[%emt 0:07:54]} 14. Qxe4 {[%emt 0:01:35]} c6 {[%emt 0:00:06]} 15. d5 {[%emt 0:18:20]} cxd5 {[%emt 0:01:59]} 16. cxd5 {[%emt 0:00:07]} Nd7 {[%emt 0:04:19]} 17. O-O {[%emt 0:09:40]} e5 {[%emt 0:02:42]} 18. Qf5 {[%emt 0:07:03]} Rad8 {[%emt 0:03:32]} 19. f4 {[%emt 0:13:40]} exf4 {[%emt 0:11:47]} 20. exf4 {[%emt 0:00:42]} Qf6 {[%emt 0:00:26]} 21. Qxf6 {[%emt 0:04:57]} Nxf6 {[%emt 0:00:36]} 22. Nb5 {[%emt 0:00:03]} Rd7 {[%emt 0:14:49]} 23. Rac1 {[%emt 0:00:48]} Nxd5 {[%emt 0:01:50]} 24. Rfd1 {[%emt 0:00:16]} Ne7 {[%emt 0:00:41]} 25. Rxd6 {[%emt 0:03:15]} Rfd8 {[%emt 0:00:21]} 26. Rxd7 {[%emt 0:09:43]} Rxd7 {[%emt 0:00:08]} 27. Rc7 {[%emt 0:00:03]} Rxc7 {[%emt 0:00:29]} 28. Nxc7 {[%emt 0:00:01]} Kf8 {[%emt 0:01:34]} 29. Kf2 {[%emt 0:00:09]} Nc8 {[%emt 0:01:48]} 30. Ke3 {[%emt 0:02:56]} Ke7 {[%emt 0:00:15]} 31. Ke4 {[%emt 0:00:44]} Kd7 {[%emt 0:01:10]} 32. Nb5 {[%emt 0:00:56]} Kc6 {[%emt 0:06:15]} 33. Nd4+ {[%emt 0:02:43]} Kd7 {[%emt 0:01:37]} 34. g4 {[%emt 0:01:40]} a6 {[%emt 0:05:26]} 35. h4 {[%emt 0:00:54]} Nd6+ {[%emt 0:01:11]} 36. Kd5 {[%emt 0:00:02]} Ne8 {[%emt 0:05:49]} 37. g5 {[%emt 0:01:07]} Nc7+ {[%emt 0:00:25]} 38. Ke5 {[%emt 0:00:06]} Ne8 {[%emt 0:00:19]} 39. Kd5 {[%emt 0:01:36]} Nc7+ {[%emt 0:01:36]} 40. Ke5 {[%emt 0:00:00]} Ne8 {[%emt 0:00:00]} 1/2-1/2

[Event "Romanian Superliga 2024"]
[Site "Mamaia"]
[Date "2024.10.01"]
[Round "4.24"]
[White "Corbu, George-Alexandru"]
[Black "Szabo, Attila"]
[Result "1/2-1/2"]
[ECO "A67"]
[WhiteElo "2039"]
[BlackElo "2137"]
[Annotator "RC"]
[PlyCount "49"]
[EventDate "2024.09.26"]
[EventType "team-tourn"]
[EventCountry "ROU"]
[SourceTitle "playchess.com"]
[Source "ChessBase"]
[SourceQuality "1"]
[TimeControl "40/5400+30:1800+30"]

1. d4 {[%emt 0:00:03]} Nf6 {[%emt 0:00:52]} 2. c4 {[%emt 0:00:11]} c5 {[%emt 0:00:28]} 3. d5 {[%emt 0:00:13]} e6 {[%emt 0:00:07]} 4. Nc3 {[%emt 0:00:20]} exd5 {[%emt 0:00:06]} 5. cxd5 {[%emt 0:00:06]} d6 {[%emt 0:00:08]} 6. e4 {[%emt 0:00:24]} g6 {[%emt 0:00:06]} 7. f4 {[%emt 0:00:33]} Bg7 {[%emt 0:00:07]} 8. Bb5+ {[%emt 0:00:10]} Nfd7 {[%emt 0:00:16]} 9. Nf3 {[%emt 0:00:41]} O-O {[%emt 0:00:09]} 10. O-O {[%emt 0:00:55]} a6 {[%emt 0:02:23]} 11. Bd3 {[%emt 0:00:22]} b5 {[%emt 0:00:12]} 12. f5 {[%emt 0:03:23]} Ne5 {[%emt 0:07:25]} 13. Nxe5 {[%emt 0:01:14]} Bxe5 {[%emt 0:00:04]} 14. Qf3 {[%emt 0:07:16]} Nd7 {[%emt 0:06:48]} 15. Ne2 {[%emt 0:07:06]} Bg7 {[%emt 0:07:16]} 16. Bc2 {[%emt 0:05:17]} Qe7 {[%emt 0:15:03]} 17. Rb1 {[%emt 0:10:59]} Bb7 {[%emt 0:14:48]} 18. Ng3 {[%emt 0:05:26]} Rac8 {[%emt 0:03:19]} 19. Qg4 {[%emt 0:08:55]} c4 {[%emt 0:05:27]} 20. Bg5 {[%emt 0:04:48]} Bf6 {[%emt 0:09:19]} 21. Bh6 {[%emt 0:01:05]} Ne5 {[%emt 0:17:05]} 22. Bxf8 {[%emt 0:05:03]} Nxg4 {[%emt 0:00:41]} 23. Bxe7 {[%emt 0:00:07]} Bxe7 {[%emt 0:00:05]} 24. Bd1 {[%emt 0:07:36]} Ne5 {[%emt 0:01:25]} 25. Rc1 {[%emt 0:04:28]} 1/2-1/2

[Event "Romanian Superliga 2024"]
[Site "Mamaia"]
[Date "2024.10.01"]
[Round "4.25"]
[White "Kozak, Adam"]
[Black "Theodorou, Nikolas"]
[Result "1/2-1/2"]
[ECO "A31"]
[WhiteElo "2609"]
[BlackElo "2619"]
[Annotator "TA"]
[PlyCount "99"]
[EventDate "2024.09.26"]
[EventType "team-tourn"]
[EventCountry "ROU"]
[SourceTitle "playchess.com"]
[Source "ChessBase"]
[SourceQuality "1"]
[TimeControl "40/5400+30:1800+30"]

{[%evp 16,99,17,0,4,-16,-11,-12,-4,-10,-6,-14,53,39,39,41,42,45,41,34,48,64,66,51,81,88,86,83,81,80,85,60,104,103,106,96,114,100,120,86,111,102,92,92,134,102,119,84,135,84,84,84,84,84,84,81,84,84,84,84,94,81,86,82,76,70,70,70,71,0,0,0,0,0,0,0,0,0,0,0,0,0,0,0,0,0]} 1. d4 {[%emt 0:00:04]} Nf6 {[%emt 0:00:06]} 2. c4 {[%emt 0:00:06]} c5 {[%emt 0:00:20]} 3. Nf3 {[%emt 0:02:41][%cal Bg1f3,Bf3d4,Bd4b5,Bb5c3][%mdl 32]} cxd4 {[%emt 0:00:08]} 4. Nxd4 {[%emt 0:00:05]} e5 {[%emt 0:00:08]} 5. Nb5 {[%emt 0:02:57]} d5 {[%emt 0:00:08]} 6. cxd5 {[%emt 0:01:55]} Bc5 {[%emt 0:00:08]} 7. e3 {[%emt 0:02:15]} O-O {[%emt 0:00:28]} 8. N5c3 {[%emt 0:00:54]} Bf5 {[%emt 0:03:32]} 9. Be2 {[%emt 0:02:23]} (9. a3 $5) 9... Nbd7 {[%emt 0:00:23]} 10. Nd2 {[%emt 0:15:21]} Bb4 {[%emt 0:00:23]} 11. O-O {[%emt 0:01:31]} Bxc3 {[%emt 0:29:41]} 12. bxc3 {[%emt 0:00:09][%cal Bb2c3,Bc3c4][%mdl 32]} Nxd5 {[%emt 0:00:04][%cal Bf6d5,Bd5b4,Bb4d3][%mdl 32]} 13. Bb2 {[%emt 0:02:01] [#] Schwarz muss nun e4 beachten.} Nc5 {[%emt 0:11:06]} ({Vorzuziehen ist} 13... Qb6 $11 14. Nb3 N5f6) 14. c4 $14 {[%emt 0:10:53][%csl LRd5,LRe5]} Nb4 {[%emt 0:00:08]} 15. Bxe5 {[%emt 0:02:10] Ein starkes Läuferpaar.} Bc2 {[%emt 0:00:45] Pariert Nb3.} 16. Qc1 {[%emt 0:00:16] Und Bc3 würde nun gewinnen.} Bd3 {[%emt 0:00:07]} 17. Bxd3 {[%emt 0:01:06]} Nbxd3 {[%emt 0:08:49]} 18. Qa3 {[%emt 0:00:12]} Nxe5 {[%emt 0:00:16]} 19. Qxc5 {[%emt 0:00:07]} Qxd2 {[%emt 0:00:36]} 20. Qxe5 {[%emt 0:00:07]} Rfd8 {[%emt 0:00:19]} 21. Qb5 {[%emt 0:06:58]} b6 {[%emt 0:02:10]} 22. Qa4 {[%emt 0:00:07]} g6 {[%emt 0:03:03]} 23. h3 {[%emt 0:04:51]} Rdc8 {[%emt 0:02:01]} 24. Rfd1 {[%emt 0:04:53]} Qb2 {[%emt 0:04:12]} 25. Rab1 {[%emt 0:01:08]} Qf6 {[%emt 0:00:07]} 26. Rd7 {[%emt 0:10:53]} Kg7 {[%emt 0:08:36]} 27. Rd4 {[%emt 0:06:26] Weiß hat aktiveres Spiel.} ({Bloß nicht} 27. Rxa7 Rxa7 28. Qxa7 Rxc4) 27... Rc7 {[%emt 0:01:07]} 28. Rbd1 {[%emt 0:00:41]} Rac8 {[%emt 0:00:05]} 29. Rf4 {[%emt 0:01:16]} Qe7 {[%emt 0:05:13]} 30. Rdd4 {[%emt 0:00:38]} Rd8 {[%emt 0:02:54]} 31. Rfe4 {[%emt 0:11:05]} Qf6 {[%emt 0:00:02]} (31... Qg5 $142) 32. Rxd8 {[%emt 0:01:50]} (32. Qc2 $142) 32... Qxd8 $16 {[%emt 0:00:03][%mdl 4096] Endspiel. KQR-KQR} 33. Rd4 {[%emt 0:00:08]} Qe7 {[%emt 0:01:29]} 34. g4 {[%emt 0:00:12]} h5 {[%emt 0:01:00]} 35. Qb3 {[%emt 0:02:56]} hxg4 {[%emt 0:01:44]} 36. hxg4 {[%emt 0:00:36]} ({Ein No Go ist} 36. Rxg4 $6 Qe6 $11) 36... Qf6 {[%emt 0:06:26]} 37. Qd3 {[%emt 0:02:36]} Rc8 {[%emt 0:03:52]} 38. Qe4 {[%emt 0:01:37]} Rc5 {[%emt 0:03:02]} 39. Rd5 {[%emt 0:02:27]} Rc8 {[%emt 0:00:02]} 40. Kg2 {[%emt 0:00:00]} Qc6 {[%emt 0:00:00]} 41. Qd4+ $1 {[%emt 0:10:12]} Kh7 {[%emt 0:02:53]} 42. g5 {[%emt 0:05:02]} (42. Kg3 $16) 42... Qxc4 $11 {[%emt 0:02:30] Die Stellung ist ausgeglichen.} 43. Qxc4 {[%emt 0:05:32]} Rxc4 {[%emt 0:00:04] KR-KR} 44. Rd7 {[%emt 0:00:06][%csl LRa7,LRf7]} Kg7 {[%emt 0:01:11]} 45. Rxa7 {[%emt 0:01:24]} Rg4+ {[%emt 0:00:06]} 46. Kf3 {[%emt 0:00:33]} Rxg5 {[%emt 0:00:07]} 47. a4 {[%emt 0:01:04]} b5 {[%emt 0:04:02][%cal Bb6b5,Bb5b4,Bb4b3][%mdl 32]} 48. a5 {[%emt 0:00:20]} b4 {[%emt 0:00:02]} 49. Ke2 {[%emt 0:01:56]} b3 {[%emt 0:01:02]} 50. Rb7 {[%emt 0:02:06] Wehrt Rb5 ab.   Gewichteter Fehlerwert: Weiß=0.10 (sehr präzise) /Schwarz=0.11 (sehr präzise) .  Fehler:       	Weiß=2     	Schwarz=2     Ungenau:       	---       	Schwarz=3     OK:         	Weiß=15    	Schwarz=16    Bester:       	Weiß=1     	Schwarz=4     Stark:        	Weiß=1     	---} 1/2-1/2

[Event "Romanian Superliga 2024"]
[Site "Mamaia"]
[Date "2024.10.01"]
[Round "4.26"]
[White "Kourkoulos-Arditis, Stamatis"]
[Black "Tarlev, Konstantin"]
[Result "1-0"]
[ECO "C95"]
[WhiteElo "2570"]
[BlackElo "2579"]
[Annotator "TA"]
[PlyCount "89"]
[EventDate "2024.09.26"]
[EventType "team-tourn"]
[EventCountry "ROU"]
[SourceTitle "playchess.com"]
[Source "ChessBase"]
[SourceQuality "1"]
[TimeControl "40/5400+30:1800+30"]

{[%evp 29,89,7,39,36,49,52,52,31,23,34,28,28,76,64,59,64,54,63,93,99,88,84,93,77,74,90,77,78,81,91,80,81,91,94,79,86,81,82,91,27,56,14,97,58,107,107,158,158,175,146,237,197,270,188,253,246,328,326,446,458,660,664]} 1. e4 {[%emt 0:00:03]} e5 {[%emt 0:00:16]} 2. Nf3 {[%emt 0:00:04]} Nc6 {[%emt 0:00:03]} 3. Bb5 {[%emt 0:00:15]} a6 {[%emt 0:00:05]} 4. Ba4 {[%emt 0:00:04]} Nf6 {[%emt 0:00:07]} 5. O-O {[%emt 0:00:15]} Be7 {[%emt 0:00:13]} 6. Re1 {[%emt 0:00:25]} b5 {[%emt 0:00:16]} 7. Bb3 {[%emt 0:00:04]} d6 {[%emt 0:00:04]} 8. c3 {[%emt 0:00:08]} O-O {[%emt 0:00:16]} 9. h3 {[%emt 0:00:04]} Nb8 {[%emt 0:03:43]} 10. d4 {[%emt 0:00:14]} Nbd7 {[%emt 0:00:03]} 11. Nbd2 {[%emt 0:00:20][%cal Bb1d2,Bd2f1,Bf1g3][%mdl 32]} Bb7 {[%emt 0:00:04]} 12. Bc2 {[%emt 0:00:07]} Re8 {[%emt 0:00:12]} 13. Nf1 {[%emt 0:00:06]} Bf8 {[%emt 0:00:03]} 14. Ng3 {[%emt 0:00:08]} g6 {[%emt 0:00:05]} 15. b3 {[%emt 0:02:01]} c6 {[%emt 0:02:13]} 16. Bg5 {[%emt 0:05:31]} Bg7 {[%emt 0:31:25]} 17. Qd2 {[%emt 0:05:24]} Nf8 {[%emt 0:03:41]} 18. Rad1 {[%emt 0:06:06] White is slightly better.} Qc7 {[%emt 0:08:31]} 19. Bh6 {[%emt 0:05:40]} Ne6 {[%emt 0:02:48]} 20. b4 {[%emt 0:03:41]} Rad8 {[%emt 0:21:38]} (20... Bc8 $11) 21. Bb3 $16 {[%emt 0:06:07] Black must now prevent Bxe6.} Bc8 {[%emt 0:00:03]} 22. Bxe6 {[%emt 0:12:49]} (22. Qe3 {is interesting.} a5 23. dxe5 dxe5 24. Rxd8 Nxd8 25. bxa5 c5 26. Bxg7 Kxg7 27. Bd5) 22... Bxe6 {[%emt 0:01:36]} 23. Qg5 {[%emt 0:00:38]} Bc8 {[%emt 0:10:12]} 24. Bxg7 {[%emt 0:13:36]} Kxg7 {[%emt 0:00:03]} 25. dxe5 {[%emt 0:00:06] White is more active.} dxe5 {[%emt 0:00:02]} 26. Rxd8 {[%emt 0:00:08]} Rxd8 {[%emt 0:00:35][%cal Be8d8,Bd8d2,Bd2a2][%mdl 32]} 27. Qxe5 {[%emt 0:04:02]} (27. Nxe5 h6 28. Qf4 g5 29. Nf5+ Kh7 $11) 27... Qxe5 {[%emt 0:00:03]} 28. Nxe5 {[%emt 0:00:04]} Rd2 {[%emt 0:00:07]} 29. Nxc6 {[%emt 0:05:43]} Rxa2 {[%emt 0:01:37]} 30. f3 {[%emt 0:00:32]} Be6 {[%emt 0:02:37]} 31. Ne2 {[%emt 0:10:06]} Bc4 {[%emt 0:01:10]} 32. Kf2 {[%emt 0:00:27]} Nd7 {[%emt 0:05:49] Inhibits Ne5.} 33. Ke3 {[%emt 0:02:55]} Nb6 {[%emt 0:00:30]} 34. Nf4 {[%emt 0:05:48]} (34. h4 $16) 34... Rc2 {[%emt 0:02:05][%cal Og6g5]} 35. Ra1 {[%emt 0:00:31] [#] Nd4 would now be deadly.} Na4 {[%emt 0:02:20]} (35... g5 $1 $11 {keeps the balance.} 36. Nd3 (36. Nh5+ Kg6 $16) 36... Na4 (36... Rxc3 37. Nce5 $11)) 36. Ra3 {[%emt 0:01:09]} Nxc3 {[%emt 0:02:16]} (36... Rxc3+ 37. Rxc3 Nxc3 38. Kd4 Ne2+ 39. Nxe2 Bxe2 40. h4 $16) (36... g5 $14 37. Nh5+ Kg6) 37. Rxa6 {[%emt 0:01:47]} Nd1+ {[%emt 0:00:21]} (37... Ne2 $142) 38. Kd4 {[%emt 0:00:05]} Rd2+ {[%emt 0:00:23]} 39. Kc5 {[%emt 0:00:07]} Ne3 {[%emt 0:00:12]} (39... Rc2 $16 40. Nd4 Rc1) 40. g4 {[%emt 0:00:00]} Bf1 {[%emt 0:00:00]} (40... Rc2 {was necessary.} 41. Ne5 h6) 41. g5 {[%emt 0:12:07]} h6 {[%emt 0:05:44]} (41... Rc2+ $142 42. Kd4 Ng2) 42. h4 {[%emt 0:01:06][%cal Bh3h4,Bh4g5][%mdl 32]} hxg5 {[%emt 0:00:05]} 43. hxg5 {[%emt 0:31:27]} Rf2 {[%emt 0:06:39]} 44. Nd4 {[%emt 0:00:00]} Bc4 {[%emt 0:01:22]} (44... Rd2 $142 45. Ra7 (45. Nxb5 Rc2+ 46. Kd4 Bxb5 $16) 45... Nc2) 45. Nd5 {[%emt 0:00:00] Weighted Error Value: White=0.14 (very precise) /Black=0.40.  Mistake:       	White=1     	Black=8      Inaccurate:     	White=3     	Black=4      OK:         	White=10    	Black=5      Best:        	White=5     	---} ({Weaker is} 45. Nxb5 Bxb5 46. Kxb5 Nc2 $18) 1-0

[Event "Romanian Superliga 2024"]
[Site "Mamaia"]
[Date "2024.10.01"]
[Round "4.27"]
[White "Serban, Cristian-Stefan"]
[Black "Marin, Mihail"]
[Result "1-0"]
[ECO "E14"]
[WhiteElo "2269"]
[BlackElo "2455"]
[Annotator "TA"]
[PlyCount "91"]
[EventDate "2024.09.26"]
[EventType "team-tourn"]
[EventCountry "ROU"]
[SourceTitle "playchess.com"]
[Source "ChessBase"]
[SourceQuality "1"]
[TimeControl "40/5400+30:1800+30"]

{[%evp 20,91,31,25,39,42,37,40,37,29,38,42,39,8,8,5,35,32,29,35,52,47,53,21,48,49,43,42,47,50,49,34,27,13,175,186,191,191,294,179,169,184,186,163,166,188,188,186,166,161,188,188,181,143,143,143,1109,1315,1109,349,2663,1170,2468,1536,2748,1600,6482,6405,6408,6203,6095,6070,5202,2360]} 1. d4 {[%emt 0:01:05]} e6 {[%emt 0:00:06]} 2. c4 {[%emt 0:00:10]} Nf6 {[%emt 0:00:35]} 3. Nf3 {[%emt 0:00:07]} Bb4+ {[%emt 0:00:13]} 4. Nbd2 {[%emt 0:00:11]} b6 {[%emt 0:01:34]} 5. a3 {[%emt 0:00:10]} Bxd2+ {[%emt 0:00:05]} 6. Qxd2 {[%emt 0:00:07]} Bb7 {[%emt 0:00:04]} 7. e3 {[%emt 0:00:11]} a5 {[%emt 0:06:07]} 8. b3 {[%emt 0:01:08]} d6 {[%emt 0:00:12]} 9. Be2 {[%emt 0:00:16]} O-O {[%emt 0:00:38]} 10. Bb2 {[%emt 0:00:08]} Nbd7 {[%emt 0:01:26]} 11. O-O {[%emt 0:00:16]} Ne4 {[%emt 0:05:52]} 12. Qc2 {[%emt 0:00:08]} f5 {[%emt 0:00:04] [#]} 13. d5 $1 {[%emt 0:19:46]} e5 {[%emt 0:10:07] Prevents Nd4. White is slightly better.} 14. Nd2 {[%emt 0:03:28]} Nxd2 {[%emt 0:03:46]} 15. Qxd2 {[%emt 0:00:06]} Qe7 {[%emt 0:05:28]} 16. f4 {[%emt 0:15:47]} Nc5 {[%emt 0:05:31] White must now prevent ...exf4.} 17. Qc3 {[%emt 0:03:15][%cal Rf4e5]} Ne4 {[%emt 0:03:01]} (17... exf4 $5 18. exf4 Nxb3 $14) 18. Qc2 {[%emt 0:01:27]} c6 {[%emt 0:01:05]} 19. fxe5 {[%emt 0:08:07][%cal Of1f5]} dxe5 {[%emt 0:02:06] [#]} 20. Rxf5 $1 {[%emt 0:01:49]} Rxf5 {[%emt 0:00:58]} 21. Qxe4 {[%emt 0:00:10]} Rf6 {[%emt 0:01:15]} 22. Qxe5 {[%emt 0:08:15]} Qxe5 {[%emt 0:05:55]} 23. Bxe5 {[%emt 0:01:40]} Rf5 {[%emt 0:00:07][%cal Bf6f5,Bf5g5,Bg5g6][%mdl 32]} 24. Bd4 {[%emt 0:00:03]} cxd5 {[%emt 0:00:53]} 25. Bg4 {[%emt 0:00:02]} Rg5 {[%emt 0:01:02]} 26. Be6+ {[%emt 0:00:04] A strong pair of Bishops.} Kh8 $2 {[%emt 0:02:24]} (26... Kf8 $11) 27. h4 $36 {[%emt 0:00:06][%cal Bh2h4,Bh4h5][%mdl 2080] White is really pushing.} (27. Bxb6 $2 dxc4 28. g3 Rg6 29. Bxc4 Rxb6 $19) 27... Rg6 {[%emt 0:10:05]} 28. cxd5 {[%emt 0:03:24][%cal Oa1c1]} (28. Bxd5 Bxd5 29. cxd5 Kg8 $11) 28... Rd8 {[%emt 0:00:54]} (28... Rxe6 $142 29. dxe6 Bd5) 29. h5 {[%emt 0:03:05]} (29. Bxb6 Bxd5 30. Bxd8 Rxe6 $16) (29. e4 Rxe6 30. dxe6 Rxd4 $16) 29... Rxe6 {[%emt 0:10:30]} 30. dxe6 {[%emt 0:03:48][%cal Oa1f1][%mdl 4096] Endgame. Threatens to win with Rf1! KRB-KRB} Kg8 {[%emt 0:00:04]} 31. Rf1 {[%emt 0:05:01]} ({Don't play} 31. Bxb6 Re8 32. Rd1 (32. Bxa5 Rxe6 33. Bd2 Re5 $18) 32... Rxe6) 31... Rf8 {[%emt 0:03:39] Wards off Rf7} 32. Rxf8+ {[%emt 0:02:07]} Kxf8 {[%emt 0:00:11]} 33. Bxb6 {[%emt 0:00:04] KB-KB} Bd5 {[%emt 0:01:32]} 34. Bxa5 {[%emt 0:00:06]} Bxb3 {[%emt 0:10:05]} 35. Bb4+ {[%emt 0:00:07]} Ke8 {[%emt 0:00:04]} 36. e7 {[%emt 0:00:47][%cal Oh5h6]} Kf7 {[%emt 0:01:06]} 37. h6 {[%emt 0:00:28] hxg7 would now be deadly.} gxh6 {[%emt 0:00:19][%mdl 8192] Loses the game.} (37... g5 $16 38. Kf2 Ba4) 38. Kf2 {[%emt 0:04:50]} Ba4 {[%emt 0:00:21]} 39. Ke2 {[%emt 0:00:26]} Bb5+ $2 {[%emt 0:04:41]} (39... Bc6 40. g3 Ke6) 40. Kd2 {[%emt 0:00:00] White is clearly winning.} Ke6 {[%emt 0:00:00]} 41. Kc3 {[%emt 0:00:14]} Kd5 {[%emt 0:00:31]} 42. Kb3 {[%emt 0:00:44]} h5 {[%emt 0:01:28]} 43. a4 {[%emt 0:00:33]} Bc6 {[%emt 0:00:12]} 44. g3 {[%emt 0:00:48]} Be8 {[%emt 0:00:50]} 45. a5 {[%emt 0:00:24]} Bf7 {[%emt 0:00:19]} 46. Kc3 {[%emt 0:00:07] Weighted Error Value: White=0.09 (flawless) /Black=0.24 (precise) .  Loses game:     	---       	Black=2      Mistake:       	---       	Black=1      Inaccurate:     	White=2     	Black=3      OK:         	White=11    	Black=14     Best:        	White=2     	Black=1      Brilliant:      	White=1     	---} 1-0

[Event "Romanian Superliga 2024"]
[Site "Mamaia"]
[Date "2024.10.01"]
[Round "4.28"]
[White "Miron, Lucian-Costin"]
[Black "Tampea, Radu"]
[Result "1-0"]
[ECO "E57"]
[WhiteElo "2473"]
[BlackElo "2226"]
[Annotator "RC"]
[PlyCount "65"]
[EventDate "2024.09.26"]
[EventType "team-tourn"]
[EventCountry "ROU"]
[SourceTitle "playchess.com"]
[Source "ChessBase"]
[SourceQuality "1"]
[TimeControl "40/5400+30:1800+30"]

1. d4 {[%emt 0:00:04]} d5 {[%emt 0:00:38]} 2. c4 {[%emt 0:00:07]} e6 {[%emt 0:00:07]} 3. Nc3 {[%emt 0:00:06]} c5 {[%emt 0:00:27]} 4. e3 {[%emt 0:02:51]} Nf6 {[%emt 0:02:08]} 5. Nf3 {[%emt 0:00:34]} Nc6 {[%emt 0:03:16]} 6. a3 {[%emt 0:00:09]} cxd4 {[%emt 0:06:22]} 7. exd4 {[%emt 0:00:41]} dxc4 {[%emt 0:00:20]} 8. Bxc4 {[%emt 0:01:02]} Be7 {[%emt 0:00:50]} 9. O-O {[%emt 0:02:41]} O-O {[%emt 0:00:10]} 10. Re1 {[%emt 0:03:28]} b6 {[%emt 0:07:40]} 11. Ba2 {[%emt 0:16:19]} Bb7 {[%emt 0:03:31]} 12. Qd3 {[%emt 0:00:58]} Qd7 {[%emt 0:09:39]} 13. Bg5 {[%emt 0:00:52]} Rad8 {[%emt 0:11:54]} 14. Rad1 {[%emt 0:00:36]} Rfe8 {[%emt 0:00:05]} 15. Bb1 {[%emt 0:11:17]} g6 {[%emt 0:00:55]} 16. Ba2 {[%emt 0:00:05]} Nd5 {[%emt 0:16:58]} 17. Ne4 {[%emt 0:06:36]} Bxg5 {[%emt 0:12:49]} 18. Nfxg5 {[%emt 0:01:34]} Kg7 {[%emt 0:00:07]} 19. Nxh7 {[%emt 0:19:29]} Qe7 {[%emt 0:19:34]} 20. Nhg5 {[%emt 0:02:00]} f5 {[%emt 0:01:07]} 21. Qh3 {[%emt 0:02:04]} Rh8 {[%emt 0:00:40]} 22. Qg3 {[%emt 0:00:08]} fxe4 {[%emt 0:00:31]} 23. Rxe4 {[%emt 0:00:22]} e5 {[%emt 0:01:32]} 24. Rde1 {[%emt 0:03:21]} Rh5 {[%emt 0:00:30]} 25. h4 {[%emt 0:03:11]} Nf6 {[%emt 0:00:31]} 26. R4e3 {[%emt 0:12:15]} Rxd4 {[%emt 0:00:25]} 27. Ne6+ {[%emt 0:00:05]} Kh7 {[%emt 0:00:31]} 28. Nxd4 {[%emt 0:00:12]} Nxd4 {[%emt 0:00:09]} 29. Rxe5 {[%emt 0:00:09]} Rxe5 {[%emt 0:00:51]} 30. Qxe5 {[%emt 0:00:16]} Qxe5 {[%emt 0:00:20]} 31. Rxe5 {[%emt 0:00:07]} Nf5 {[%emt 0:00:43]} 32. Bb1 {[%emt 0:03:54]} Ng4 {[%emt 0:00:33]} 33. Rxf5 {[%emt 0:00:16]} 1-0

[Event "Romanian Superliga 2024"]
[Site "Mamaia"]
[Date "2024.10.01"]
[Round "4.29"]
[White "Padurariu, Mihai-Edward"]
[Black "Secheres, Adrian-Simion"]
[Result "1/2-1/2"]
[ECO "C55"]
[WhiteElo "2233"]
[BlackElo "2344"]
[Annotator "RC"]
[PlyCount "68"]
[EventDate "2024.09.26"]
[EventType "team-tourn"]
[EventCountry "ROU"]
[SourceTitle "playchess.com"]
[Source "ChessBase"]
[SourceQuality "1"]
[TimeControl "40/5400+30:1800+30"]

1. e4 {[%emt 0:00:23]} e5 {[%emt 0:00:24]} 2. Nf3 {[%emt 0:00:20]} Nc6 {[%emt 0:00:25]} 3. Bc4 {[%emt 0:00:14]} Nf6 {[%emt 0:00:18]} 4. d3 {[%emt 0:00:17]} h6 {[%emt 0:00:17]} 5. Nc3 {[%emt 0:04:24]} d6 {[%emt 0:02:45]} 6. a4 {[%emt 0:02:26]} a5 {[%emt 0:05:45]} 7. h3 {[%emt 0:05:01]} Be7 {[%emt 0:00:52]} 8. O-O {[%emt 0:08:58]} g5 {[%emt 0:10:39]} 9. d4 {[%emt 0:21:12]} g4 {[%emt 0:02:12]} 10. dxe5 {[%emt 0:00:35]} dxe5 {[%emt 0:04:28]} 11. Qxd8+ {[%emt 0:01:25]} Bxd8 {[%emt 0:00:18]} 12. hxg4 {[%emt 0:00:13]} Bxg4 {[%emt 0:01:00]} 13. Nh2 {[%emt 0:00:48]} Nd4 {[%emt 0:05:04]} 14. Nxg4 {[%emt 0:04:39]} Nxg4 {[%emt 0:00:06]} 15. Bd3 {[%emt 0:02:09]} c6 {[%emt 0:11:10]} 16. Ne2 {[%emt 0:13:09]} Bb6 {[%emt 0:05:27]} 17. Nxd4 {[%emt 0:00:56]} Bxd4 {[%emt 0:00:07]} 18. c3 {[%emt 0:00:37]} Bc5 {[%emt 0:00:54]} 19. Be2 {[%emt 0:10:51]} h5 {[%emt 0:08:03]} 20. Bg5 {[%emt 0:03:47]} Rg8 {[%emt 0:09:44]} 21. Bh4 {[%emt 0:00:24]} Be7 {[%emt 0:00:45]} 22. Bxg4 {[%emt 0:02:49]} hxg4 {[%emt 0:02:55]} 23. Bg3 {[%emt 0:03:59]} f6 {[%emt 0:04:49]} 24. Rfd1 {[%emt 0:00:22]} Rd8 {[%emt 0:05:40]} 25. Kf1 {[%emt 0:00:31]} Kf7 {[%emt 0:02:02]} 26. Ke2 {[%emt 0:01:44]} Ke6 {[%emt 0:05:44]} 27. Rxd8 {[%emt 0:00:56]} Rxd8 {[%emt 0:00:05]} 28. Rd1 {[%emt 0:00:41]} Rb8 {[%emt 0:00:40]} 29. Kd3 {[%emt 0:00:42]} b5 {[%emt 0:04:29]} 30. axb5 {[%emt 0:00:50]} cxb5 {[%emt 0:00:05]} 31. Kc2 {[%emt 0:00:28]} a4 {[%emt 0:00:56]} 32. f4 {[%emt 0:06:52]} gxf3 {[%emt 0:00:31]} 33. gxf3 {[%emt 0:00:01]} b4 {[%emt 0:02:58]} 34. cxb4 {[%emt 0:00:48]} Rxb4 {[%emt 0:00:38]} 1/2-1/2